bitfinex-derivatives/quotes_SOLF0:USTF0_20250227
["timestamp","ask_amount","ask_price","bid_price","bid_amount"]
[1740673662329,0.04548412,139.07,139.06,7.1967]
[1740673663029,0.04548412,139.07,139.05,7.1971]
[1740673663624,0.04548412,139.07,139.06,7.1967]
[1740673664729,8.412e-05,139.07,139.06,7.1967]
[1740673669440,8.412e-05,139.07,139.05,7.2498063]
[1740673669634,8.412e-05,139.07,139.05,0.0527063]
[1740673669933,8.412e-05,139.07,139.06,7.1967]
[1740673671240,8.412e-05,139.07,139.05,7.2497063]
[1740673672640,8.412e-05,139.07,139.06,7.1967]
[1740673680644,8.412e-05,139.07,139.05,0.0527063]
[1740673681162,8.412e-05,139.07,139.06,7.1967]
[1740673684463,8.412e-05,139.07,139.06,31.1608]
[1740673685262,8.412e-05,139.07,139.06,9.5808]
[1740673685861,8.412e-05,139.07,139.06,7.1967]
[1740673686062,8.412e-05,139.07,139.05,0.0527063]
[1740673687558,8.412e-05,139.07,139.06,7.1967]
[1740673689562,8.412e-05,139.07,139.05,0.0527063]
[1740673689763,8.412e-05,139.07,139.0,29.76362592]
[1740673690064,7.1973,139.05,139.01,7.1991]
[1740673690466,5.0054,139.06,139.0,29.76362592]
[1740673690665,7.1978,139.04,139.0,36.96312592]
[1740673690867,5.0054,139.06,139.0,29.76362592]
[1740673691069,0.04739346,139.03,139.0,39.74602037]
[1740673691364,0.04739346,139.03,139.02,7.1984]
[1740673691759,0.04739346,139.03,139.01,7.1988]
[1740673692365,0.04739346,139.03,139.0,39.74602037]
[1740673693365,0.04739346,139.03,139.0,35.83362037]
[1740673693969,21.62739346,139.03,138.99,78.11379218]
[1740673694158,21.62739346,139.03,138.99,76.17419218]
[1740673694358,21.62739346,139.03,138.99,74.63209218]
[1740673694566,21.62739346,139.03,138.95,118.13672642]
[1740673694766,218.51355255,139.02,138.95,105.50752642]
[1740673694966,0.04743386,139.0,138.94,171.70104884]
[1740673695167,11.88,138.99,138.94,171.70104884]
[1740673695471,1.32355255,138.98,138.94,171.70104884]
[1740673695863,22.90355255,138.98,138.94,171.70104884]
[1740673696067,1.32355255,138.97,138.94,171.70104884]
[1740673696267,21.58,138.97,138.94,171.70104884]
[1740673696467,1.32430464,138.96,138.94,171.70104884]
[1740673696969,0.05204604,138.97,138.94,171.70104884]
[1740673697870,21.63204604,138.97,138.94,171.70104884]
[1740673698064,1.32428074,138.96,138.94,171.70104884]
[1740673698370,7.2024,138.95,138.94,171.70104884]
[1740673698572,30.12668074,138.95,138.94,49.36104884]
[1740673698774,30.12668074,138.95,138.8,4.4542]
[1740673698775,22.92428074,138.95,138.8,4.4542]
[1740673698971,0.05204604,138.97,138.8,134.01904217]
[1740673698972,1.32428074,138.94,138.8,134.01904217]
[1740673699169,1.32428074,138.93,138.8,205.97904217]
[1740673699472,0.0491759,138.88,138.82,79.16]
[1740673699670,15.0662633,139.0,138.82,79.16]
[1740673699671,11.88,138.89,138.82,79.16]
[1740673699872,0.04865588,138.86,138.82,71.96]
[1740673700268,0.04865588,138.86,138.82,79.16]
[1740673700772,0.04865588,138.86,138.8,4.4542]
[1740673700974,293.53139745,138.85,138.82,79.16]
[1740673701171,293.53139745,138.85,138.76,2.3801]
[1740673701363,293.53139745,138.85,138.78,79.16]
[1740673701562,5.49901893,138.84,138.78,208.72484217]
[1740673701769,0.05366001,138.83,138.79,86.3704]
[1740673701964,0.05366001,138.83,138.79,79.16]
[1740673702170,0.05366001,138.83,138.76,2.3801]
[1740673702369,0.05366001,138.83,138.76,211.10494217]
[1740673702569,0.05366001,138.83,138.77,7.2114]
[1740673702862,11.92,138.82,138.76,211.10494217]
[1740673703062,11.92,138.82,138.78,79.16]
[1740673703262,196.92456278,138.8,138.78,184.58012215]
[1740673703474,196.92456278,138.8,138.78,129.56484217]
[1740673703674,309.47643269,138.81,138.79,7.2107]
[1740673703873,309.47643269,138.81,138.78,184.58012215]
[1740673704072,246.65294791,138.81,138.8,7.2102]
[1740673704268,180.61954791,138.81,138.8,62.22547998]
[1740673704466,164.45784791,138.81,138.8,62.22547998]
[1740673704667,164.45784791,138.81,138.8,55.02547998]
[1740673704870,106.6970341,138.81,138.8,55.02547998]
[1740673705071,106.6970341,138.81,138.8,86.47136085]
[1740673705272,106.6970341,138.81,138.7,4.8258]
[1740673705472,106.6970341,138.81,138.8,55.01527998]
[1740673706370,0.04830409,138.82,138.8,55.01527998]
[1740673706575,0.04830409,138.82,138.81,62.22497998]
[1740673706778,293.53139745,138.85,138.81,55.01527998]
[1740673707078,0.05040911,138.83,138.8,7.2098]
[1740673707279,293.53139745,138.85,138.81,47.81527998]
[1740673707575,0.0469856,138.83,138.79,7.2104]
[1740673707879,293.53139745,138.85,138.79,38.91853718]
[1740673708176,0.05069142,138.82,138.8,7.21]
[1740673708378,0.05069142,138.82,138.81,38.91853718]
[1740673708578,293.53139745,138.85,138.81,38.91853718]
[1740673708777,0.05090719,138.83,138.82,38.91853718]
[1740673708979,293.53139745,138.85,138.82,38.91853718]
[1740673709175,0.05075093,138.84,138.71,14.4289]
[1740673709379,293.53139745,138.85,138.8,38.91853718]
[1740673709780,293.53139745,138.85,138.81,31.71853718]
[1740673709781,0.04595506,138.84,138.81,31.71853718]
[1740673709981,0.04595506,138.84,138.81,38.91853718]
[1740673710483,0.04595506,138.84,138.82,38.91853718]
[1740673710779,293.53139745,138.85,138.82,38.91853718]
[1740673710982,293.53139745,138.85,138.83,31.71853718]
[1740673710983,0.05125512,138.84,138.83,31.71853718]
[1740673711282,293.53139745,138.85,138.83,38.91853718]
[1740673711582,293.58648749,138.85,138.84,38.91853718]
[1740673711782,293.58648749,138.85,138.84,7.2]
[1740673711982,293.53139745,138.85,138.73,2.3886]
[1740673712184,293.53139745,138.85,138.84,38.91853718]
[1740673712585,281.77779745,138.85,138.84,38.91853718]
[1740673713186,281.77779745,138.85,138.84,46.12663718]
[1740673713586,272.43459745,138.85,138.76,195.96]
[1740673713987,0.04771162,138.82,138.76,195.96]
[1740673714188,0.04771162,138.82,138.81,7.2097]
[1740673714989,1.162e-05,138.82,138.81,28.8297]
[1740673716388,191.65630907,138.85,138.84,7.2081]
[1740673716589,153.26960907,138.85,138.84,7.2081]
[1740673716894,153.26960907,138.85,138.84,28.8081]
[1740673717087,134.99850907,138.85,138.84,28.8081]
[1740673717800,0.05356942,138.86,138.85,7.2076]
[1740673718391,0.05356942,138.86,138.85,28.8076]
[1740673718798,0.05356942,138.86,138.83,0.04874426]
[1740673718987,0.05356942,138.86,138.84,7.2079]
[1740673719591,0.05356942,138.86,138.83,0.04874426]
[1740673721496,0.05356942,138.86,138.85,7.2076]
[1740673722498,4.8749,138.96,138.88,7.2059]
[1740673723004,12.0772,138.96,138.87,7.2063]
[1740673723497,4.8749,138.96,138.9,0.05156074]
[1740673723704,0.04849934,138.93,138.9,0.05156074]
[1740673724006,0.04795243,138.93,138.9,0.0477099]
[1740673724304,0.04795243,138.93,138.9,7.2524099]
[1740673724506,0.04795243,138.93,138.9,0.0477099]
[1740673724707,0.04795243,138.93,138.9,7.2526099]
[1740673725100,0.04795243,138.93,138.9,0.0477099]
[1740673726503,7.2043,138.92,138.9,0.0477099]
[1740673726702,0.04795243,138.93,138.9,0.0477099]
[1740673726901,7.25175243,138.93,138.9,0.0477099]
[1740673729610,7.204,138.92,138.9,0.0477099]
[1740673729805,0.04795243,138.93,138.9,0.0477099]
[1740673730009,0.04795243,138.93,138.91,6.21450514]
[1740673730205,7.25165243,138.93,138.91,6.21450514]
[1740673730801,0.04795243,138.93,138.91,6.21450514]
[1740673731408,0.04795243,138.93,138.9,29.68179666]
[1740673732008,7.2045,138.91,138.9,21.89099666]
[1740673732208,7.2045,138.91,138.9,78.2439537]
[1740673732606,12.70859659,138.91,138.9,78.2439537]
[1740673733004,12.70859659,138.91,138.9,74.3487537]
[1740673733312,7.205,138.9,138.89,108.40484483]
[1740673733506,19.105,138.9,138.89,108.40484483]
[1740673733700,40.705,138.9,138.89,108.40484483]
[1740673733907,46.20909659,138.9,138.89,0.04676058]
[1740673734601,24.60909659,138.9,138.89,0.04676058]
[1740673735605,17.40409659,138.9,138.89,0.04676058]
[1740673736406,5.50409659,138.9,138.89,0.04676058]
[1740673739512,5.50409659,138.9,138.89,7.25226058]
[1740673739707,5.50409659,138.9,138.89,0.04676058]
[1740673740109,5.50409659,138.9,138.89,7.25226058]
[1740673740419,1.60729659,138.9,138.89,7.25226058]
[1740673740912,0.04795243,138.93,138.92,7.204]
[1740673742506,195.2023,139.03,138.89,0.04676058]
[1740673742709,16.1023,139.03,138.85,212.2179]
[1740673743212,16.1023,139.03,138.91,7.2041]
[1740673743509,16.1023,139.03,138.85,212.2179]
[1740673743715,7.2017,138.97,138.96,0.0461976]
[1740673744016,16.1023,139.03,138.85,19.2179]
[1740673744211,7.2019,138.96,138.95,0.05434673]
[1740673744417,0.04715418,138.98,138.85,7.3179]
[1740673744618,212.53,139.02,138.85,7.3179]
[1740673744817,7.2036,138.93,138.89,7.2052]
[1740673745017,212.53,139.02,138.89,7.2052]
[1740673745318,16.1023,139.03,138.85,7.3179]
[1740673745319,21.53,139.0,138.85,7.3179]
[1740673745513,0.05110207,138.97,138.94,0.04849103]
[1740673745715,11.9,138.96,138.87,7.2061]
[1740673746420,7.2049,138.91,138.87,7.2061]
[1740673746811,0.04828386,138.9,138.87,7.2061]
[1740673747314,0.04828386,138.9,138.88,7.2059]
[1740673748016,7.25328386,138.9,138.86,7.2068]
[1740673748216,0.04828386,138.9,138.85,7.3179]
[1740673748919,0.04828386,138.9,138.79,293.58816621]
[1740673749219,11.9,138.96,138.81,2.4662]
[1740673749412,0.0534473,138.86,138.84,7.2081]
[1740673749612,1.5554,138.95,138.84,7.2081]
[1740673749820,0.04743973,138.86,138.85,7.2076]
[1740673750022,1.5554,138.95,138.85,7.2076]
[1740673750215,0.05310575,138.87,138.81,2.4662]
[1740673750414,1.5554,138.95,138.81,2.4662]
[1740673750621,212.53,138.94,138.81,2.4662]
[1740673750820,7.2084,138.84,138.81,2.4662]
[1740673751319,0.05038533,138.84,138.81,2.4662]
[1740673751921,7.2089,138.83,138.81,2.4662]
[1740673752125,0.05038533,138.84,138.77,2.382]
[1740673752317,0.05038533,138.84,138.77,4.9413]
[1740673752518,7.2088,138.83,138.77,4.9413]
[1740673752717,0.05038533,138.84,138.77,4.9413]
[1740673753423,11.9,138.89,138.77,4.9413]
[1740673753616,19.1058,138.89,138.84,7.2077]
[1740673753817,11.9,138.89,138.84,7.2077]
[1740673754123,205.459,138.94,138.77,4.9413]
[1740673754324,14.459,138.94,138.77,4.9413]
[1740673754519,0.04712375,138.87,138.84,0.04991986]
[1740673754719,7.2054,138.9,138.85,7.2072]
[1740673755026,0.046401,138.87,138.84,0.04630682]
[1740673755223,7.2066,138.87,138.83,7.2081]
[1740673755423,7.25920742,138.87,138.84,0.0488229]
[1740673755624,0.05260742,138.87,138.84,0.0488229]
[1740673756520,7.2076,138.85,138.84,0.0488229]
[1740673757124,7.2071,138.86,138.84,0.0488229]
[1740673757826,0.05260742,138.87,138.84,0.0488229]
[1740673758321,7.2074,138.86,138.84,0.0488229]
[1740673758627,0.05260742,138.87,138.84,0.0488229]
[1740673758924,7.25950742,138.87,138.84,0.0488229]
[1740673759320,0.05260742,138.87,138.84,0.0488229]
[1740673760519,7.2076,138.85,138.84,0.0488229]
[1740673762931,0.05260742,138.87,138.84,0.0488229]
[1740673763325,0.05260742,138.87,138.85,7.2072]
[1740673764332,0.05260742,138.87,138.84,0.0488229]
[1740673764832,7.2076,138.85,138.84,0.0488229]
[1740673765326,7.2073,138.86,138.84,0.0488229]
[1740673765527,0.05260742,138.87,138.84,0.0488229]
[1740673765732,7.2073,138.86,138.85,244.47284673]
[1740673766231,7.15353222,138.86,138.85,244.47284673]
[1740673767828,43.13,138.86,138.79,27.71018695]
[1740673768033,7.2102,138.8,138.79,27.71018695]
[1740673768235,21.53,138.84,138.8,9.92993728]
[1740673769031,0.04965026,138.83,138.8,9.92993728]
[1740673769331,28.7397,138.81,138.8,9.92993728]
[1740673769542,21.57965026,138.83,138.8,9.92993728]
[1740673769736,28.78845026,138.83,138.8,9.92993728]
[1740673770336,0.04965026,138.83,138.8,9.92993728]
[1740673770833,0.04965026,138.83,138.68,7.4163]
[1740673771030,11.92,138.85,138.8,7.2]
[1740673771235,11.92,138.9,138.82,43.21]
[1740673771437,11.92,138.9,138.83,43.21]
[1740673772335,11.92,138.9,138.7,305.50816621]
[1740673772535,0.04963741,138.88,138.85,0.04893098]
[1740673772736,11.92,138.9,138.7,305.50816621]
[1740673772933,33.45,138.9,138.79,43.21]
[1740673773133,0.05287996,138.81,138.79,43.25691848]
[1740673773334,33.45,138.9,138.79,109.39376963]
[1740673773532,0.05137387,138.81,138.79,43.25893098]
[1740673773730,11.92,138.9,138.8,43.21]
[1740673773932,0.04987727,138.81,138.79,0.04893098]
[1740673774129,11.92,138.9,138.7,293.58816621]
[1740673774336,11.92,138.9,138.83,43.21]
[1740673774739,0.05485593,138.88,138.85,0.04893098]
[1740673775736,0.05485593,138.88,138.87,7.2065]
[1740673776036,11.92,138.94,138.87,50.4165]
[1740673776241,11.92,138.94,138.88,43.21]
[1740673776436,11.92,138.95,138.9,43.21]
[1740673776938,11.92,138.96,138.91,36.01]
[1740673777138,0.0506339,138.94,138.93,43.21]
[1740673777436,0.0506339,138.94,138.92,36.01]
[1740673777642,0.0506339,138.94,138.91,0.04940398]
[1740673778037,0.0506339,138.94,138.91,7.25370398]
[1740673778244,0.0506339,138.94,138.91,152.65317361]
[1740673778441,0.0506339,138.94,138.91,109.44317361]
[1740673778641,7.51538711,139.04,138.93,43.21]
[1740673778944,11.92,139.03,138.94,43.21]
[1740673779145,11.92,139.03,138.95,7.2021]
[1740673779445,11.92,139.03,138.94,43.21]
[1740673779945,0.04591449,139.0,138.97,0.05516212]
[1740673781941,0.04591449,139.0,138.87,2.3609]
[1740673782140,11.92,139.03,138.95,43.21]
[1740673782341,11.92,139.03,138.93,43.21]
[1740673782542,7.1999,139.0,138.92,36.01]
[1740673782744,11.92,139.03,138.92,36.01]
[1740673783049,0.05237049,138.99,138.96,0.05439478]
[1740673785850,7.25277049,138.99,138.96,0.05439478]
[1740673786055,0.05237049,138.99,138.96,0.05439478]
[1740673786457,0.05237049,138.99,138.87,2.3609]
[1740673786657,1.32394176,139.02,138.89,43.21]
[1740673786851,1.32394176,139.02,138.9,36.01]
[1740673787348,1.32394176,139.02,138.87,2.3609]
[1740673787660,0.05401001,138.97,138.94,0.04486391]
[1740673787854,11.92,138.96,138.94,0.04486391]
[1740673788253,7.2024,138.95,138.94,0.04486391]
[1740673790562,7.2024,138.95,138.94,6.391e-05]
[1740673791156,28.8024,138.95,138.94,6.391e-05]
[1740673792260,7.2024,138.95,138.94,6.391e-05]
[1740673799772,0.05401001,138.97,138.94,43.21006391]
[1740673799971,0.05401001,138.97,138.96,43.21]
[1740673800272,7.2024,138.95,138.94,6.391e-05]
[1740673800473,0.05401001,138.97,138.94,7.20006391]
[1740673800667,11.9,138.96,138.95,43.21]
[1740673800872,11.9,138.96,138.94,6.391e-05]
[1740673801271,7.2024,138.95,138.94,6.391e-05]
[1740673802269,0.05401001,138.97,138.94,6.391e-05]
[1740673802473,11.9,138.96,138.94,6.391e-05]
[1740673802870,11.9,138.96,138.94,36.01006391]
[1740673803076,11.9,138.96,138.95,43.21]
[1740673803268,0.2702,138.96,138.95,43.21]
[1740673803474,0.2702,138.96,138.94,6.391e-05]
[1740673803673,0.2702,138.96,138.95,43.21]
[1740673804070,0.2702,138.96,138.94,6.391e-05]
[1740673804573,7.2024,138.95,138.94,6.391e-05]
[1740673805978,7.4723,138.96,138.94,6.391e-05]
[1740673806182,0.2702,138.96,138.95,43.21]
[1740673806582,0.05401001,138.97,138.95,43.21]
[1740673806881,0.05401001,138.97,138.96,43.21]
[1740673807383,11.9,138.99,138.96,43.21]
[1740673807575,11.9,138.99,138.94,6.391e-05]
[1740673807576,11.9,138.99,138.98,43.21]
[1740673807970,11.9,138.99,138.83,193.0]
[1740673808171,7.2008,138.98,138.97,43.21]
[1740673808481,11.9,138.99,138.97,43.21]
[1740673808675,4.20007593,138.99,138.98,43.21]
[1740673808880,7.1995,139.01,138.98,43.21]
[1740673809080,7.1991,139.02,139.0,43.21]
[1740673809279,7.1991,139.02,139.01,43.21]
[1740673809480,9.98312419,139.04,139.01,43.21]
[1740673809481,39.93249676,139.04,139.01,43.21]
[1740673809681,47.13059676,139.04,139.03,36.01]
[1740673810076,39.93249676,139.04,139.02,0.04951282]
[1740673810280,39.93249676,139.04,139.02,43.25951282]
[1740673810480,39.93249676,139.04,139.03,43.21]
[1740673810781,47.13069676,139.04,139.03,43.21]
[1740673811282,47.13019676,139.04,139.03,43.21]
[1740673811480,7.1977,139.04,139.03,43.21]
[1740673812085,0.04912122,139.05,139.02,0.04951282]
[1740673812282,7.1977,139.04,139.03,11.91467981]
[1740673812785,0.04912122,139.05,139.03,19.11467981]
[1740673812981,7.1981,139.04,139.03,19.11467981]
[1740673813283,0.04912122,139.05,139.04,19.11467981]
[1740673813485,7.24672122,139.05,139.04,19.11467981]
[1740673813874,7.1983,139.03,139.02,0.04951282]
[1740673814080,7.1983,139.03,139.02,1.282e-05]
[1740673814880,8.52194327,139.03,139.02,1.282e-05]
[1740673815282,8.52210118,139.03,139.02,1.282e-05]
[1740673815482,7.1983,139.03,139.02,1.282e-05]
[1740673816083,7.1983,139.03,139.02,19.11469263]
[1740673816482,7.1983,139.03,139.02,1.282e-05]
[1740673817384,3.3216,139.03,139.02,19.11469263]
[1740673817778,0.04912122,139.05,139.02,19.11469263]
[1740673817984,11.9,139.1,139.04,19.11467981]
[1740673818186,7.1965,139.07,139.06,19.11467981]
[1740673818581,11.9,139.1,139.03,2.3648]
[1740673818781,11.9,139.1,139.06,11.91467981]
[1740673818981,7.1965,139.07,139.03,2.3648]
[1740673819181,7.1965,139.07,139.06,11.91467981]
[1740673819683,7.1965,139.07,139.04,0.05039441]
[1740673819883,0.05142634,139.09,139.04,0.05039441]
[1740673820082,7.1972,139.05,139.04,9.441e-05]
[1740673820284,2.4927,139.08,138.82,275.73841497]
[1740673820587,241.65150227,139.07,138.93,19.11467981]
[1740673820785,21.53,139.05,138.93,19.11467981]
[1740673821083,21.53,139.03,138.94,19.11467981]
[1740673821286,0.04630982,139.0,138.97,0.04886856]
[1740673821782,7.2008,138.98,138.97,0.04886856]
[1740673821986,0.04630982,139.0,138.97,0.04886856]
[1740673822190,0.04630982,139.0,138.97,19.16354837]
[1740673822581,7.2008,138.98,138.97,19.16354837]
[1740673822887,7.2008,138.98,138.97,0.04886856]
[1740673823777,7.2008,138.98,138.97,6.856e-05]
[1740673824280,47.08539085,138.99,138.97,11.91474837]
[1740673824480,39.88489085,138.99,138.97,6.856e-05]
[1740673824878,7.2008,138.98,138.97,6.856e-05]
[1740673825286,2.373,138.98,138.89,2.3793]
[1740673825485,2.373,138.98,138.93,19.11467981]
[1740673825681,2.373,138.98,138.93,11.91467981]
[1740673826291,0.04791287,138.97,138.93,11.91467981]
[1740673826691,21.57791287,138.97,138.81,5.0079]
[1740673826888,21.53,138.97,138.9,19.11467981]
[1740673827088,21.53,138.97,138.9,11.91467981]
[1740673827389,0.05243656,138.95,138.82,2.3778]
[1740673827591,11.9,138.94,138.9,11.91467981]
[1740673827789,7.2045,138.91,138.9,11.91467981]
[1740673827987,7.2045,138.91,138.84,7.2078]
[1740673828193,7.2045,138.91,138.9,11.91467981]
[1740673828594,0.04846163,138.92,138.82,2.3778]
[1740673828794,11.9,138.94,138.9,19.11467981]
[1740673829186,7.204,138.92,138.9,121.30844944]
[1740673829387,0.05428218,138.93,138.9,128.50844944]
[1740673829987,0.05428218,138.93,138.91,19.11467981]
[1740673830188,0.05428218,138.93,138.82,2.3778]
[1740673830387,11.9,138.94,138.89,19.11467981]
[1740673830891,7.205,138.9,138.89,109.39376963]
[1740673831292,191.0,138.92,138.82,2.3778]
[1740673831489,191.0,138.92,138.72,195.88]
[1740673831490,22.85489186,138.91,138.66,14.4344]
[1740673831688,0.05213171,138.88,138.8,11.91467981]
[1740673831892,7.2096,138.82,138.8,19.11467981]
[1740673832093,0.04883334,138.85,138.8,116.63034944]
[1740673832295,0.04883334,138.85,138.75,2.5532]
[1740673832593,33.43,138.87,138.79,19.11467981]
[1740673833091,0.0548173,138.84,138.79,116.63034944]
[1740673833491,7.2086,138.83,138.81,19.11467981]
[1740673833889,7.2086,138.83,138.75,2.5532]
[1740673834089,7.2086,138.83,138.81,19.11467981]
[1740673834488,0.0497641,138.83,138.64,255.71683368]
[1740673834696,213.85549461,138.85,138.76,19.11467981]
[1740673834897,191.0,138.84,138.76,19.11467981]
[1740673835198,7.2111,138.79,138.76,107.36328505]
[1740673835396,11.9,138.78,138.76,107.36328505]
[1740673835599,119.981948,138.88,138.83,9.75028927]
[1740673835798,119.981948,138.88,138.82,7.2]
[1740673836098,108.081948,138.88,138.86,9.75028927]
[1740673836288,108.081948,138.88,138.87,9.75028927]
[1740673836796,108.081948,138.88,138.87,107.2659589]
[1740673837298,227.73662058,138.88,138.87,107.2659589]
[1740673837492,227.73662058,138.88,138.87,9.75028927]
[1740673838095,119.65467258,138.88,138.87,9.75028927]
[1740673838497,119.65467258,138.88,138.86,0.05084919]
[1740673838697,119.65467258,138.88,138.87,7.2]
[1740673838992,119.65467258,138.88,138.87,9.75028927]
[1740673839799,118.58777258,138.88,138.87,9.75028927]
[1740673839996,39.2584586,138.95,138.75,400.88]
[1740673840298,39.2584586,138.95,138.76,2.73670015]
[1740673840500,39.2584586,138.95,138.76,1.44133756]
[1740673840803,7.203,138.94,138.76,1.44133756]
[1740673841001,39.2584586,138.95,138.77,1.8558]
[1740673841203,0.05498416,138.86,138.84,0.05131293]
[1740673841501,9.81461465,138.97,138.78,195.342]
[1740673841800,9.81461465,138.97,138.87,7.2063]
[1740673841801,7.2025,138.95,138.87,7.2063]
[1740673842098,9.81461465,138.97,138.88,1.8558]
[1740673842295,9.81461465,138.97,138.9,7.2049]
[1740673842495,0.05544014,138.94,138.91,0.04944679]
[1740673842795,29.44384395,138.98,138.91,0.04944679]
[1740673842992,29.44384395,138.98,138.91,87.69839209]
[1740673843196,29.44384395,138.98,138.91,0.04944679]
[1740673843400,29.44384395,138.98,138.93,7.2031]
[1740673843699,27.16684395,138.98,138.88,1.8558]
[1740673844001,0.0472291,138.97,138.94,0.05131146]
[1740673844397,18.08204497,138.99,138.94,0.05131146]
[1740673844591,18.08204497,138.99,138.95,7.2021]
[1740673844796,18.08204497,138.99,138.96,3.1655]
[1740673844999,7.2007,138.99,138.96,3.1655]
[1740673845200,12.54769964,139.06,138.96,3.1655]
[1740673845600,0.04618252,139.02,138.96,3.1655]
[1740673845801,0.04618252,139.02,139.0,8.876e-05]
[1740673846401,7.1993,139.01,139.0,8.876e-05]
[1740673848004,0.04618252,139.02,139.0,8.876e-05]
[1740673848505,7.1993,139.01,139.0,8.876e-05]
[1740673851605,28.7793,139.01,139.0,8.876e-05]
[1740673851802,38.4035,139.01,139.0,8.876e-05]
[1740673852201,39.72733272,139.01,139.0,8.876e-05]
[1740673852401,39.72733272,139.01,138.82,3.0721]
[1740673852402,7.2052,138.9,138.82,3.0721]
[1740673852602,11.9,138.93,138.83,3.1348]
[1740673853108,7.2041,138.92,138.83,3.1348]
[1740673853407,11.9,138.93,138.85,7.2072]
[1740673853598,0.04941244,138.89,138.86,0.05118364]
[1740673855906,118.16675603,138.99,138.82,21.6]
[1740673856205,11.9,138.97,138.79,11.9]
[1740673856403,11.9,138.97,138.89,7.2055]
[1740673857208,0.04723331,138.94,138.92,0.04695208]
[1740673857405,0.04723331,138.94,138.79,11.9]
[1740673857709,0.04939127,138.94,138.92,0.04690691]
[1740673857910,7.2025,138.95,138.79,11.9]
[1740673858109,0.04794021,138.94,138.92,0.05352182]
[1740673858310,11.9,138.97,138.79,11.9]
[1740673858511,0.04578933,138.94,138.92,0.05271011]
[1740673858704,1.32436067,138.96,138.79,11.9]
[1740673858904,0.05527122,138.94,138.92,0.0485906]
[1740673859105,1.32436067,138.96,138.79,11.9]
[1740673859307,1.32436067,138.96,138.78,195.86]
[1740673859706,1.32436067,138.96,138.81,7.2093]
[1740673860108,7.205,138.9,138.81,7.2093]
[1740673860308,7.25937671,138.9,138.87,0.05055625]
[1740673860602,7.205,138.9,138.87,0.05303864]
[1740673860802,0.04570158,138.9,138.87,0.05303864]
[1740673861003,11.9,138.97,138.87,0.05303864]
[1740673861306,15.1926,138.98,138.81,11.9]
[1740673862108,155.93985791,138.98,138.81,11.9]
[1740673862312,0.0458151,138.91,138.88,0.04643589]
[1740673862612,11.9,138.9,138.79,3.2495]
[1740673862911,7.2074,138.86,138.79,3.2495]
[1740673863114,6.4949,138.89,138.79,3.2495]
[1740673863321,6.4949,138.89,138.7,196.48570708]
[1740673863518,6.4949,138.89,138.75,7.2125]
[1740673863717,0.05189036,138.81,138.78,0.04897352]
[1740673864220,0.05272233,138.81,138.78,0.05022978]
[1740673867020,11.9,138.9,138.79,3.1836]
[1740673867223,79.38770051,138.92,138.79,3.1836]
[1740673867423,86.59190051,138.92,138.79,3.1836]
[1740673867713,86.59190051,138.92,138.84,0.05380216]
[1740673867714,0.05218873,138.87,138.84,0.05380216]
[1740673867919,79.38770051,138.92,138.84,0.05380216]
[1740673868312,82.45700051,138.92,138.84,0.05380216]
[1740673868515,3.0693,138.92,138.84,0.05380216]
[1740673868717,7.2076,138.85,138.84,2.16e-06]
[1740673869117,11.9,138.87,138.84,2.16e-06]
[1740673869514,14.9693,138.92,138.84,2.16e-06]
[1740673869719,7.2054,138.9,138.85,7.2075]
[1740673869919,0.05393903,138.89,138.85,7.2075]
[1740673870123,0.05393903,138.89,138.84,2.16e-06]
[1740673871620,0.05393903,138.89,138.85,7.2072]
[1740673871828,0.05393903,138.89,138.84,2.16e-06]
[1740673872022,7.25973903,138.89,138.85,7.2075]
[1740673872219,0.05393903,138.89,138.84,2.16e-06]
[1740673873126,0.05393903,138.89,138.85,7.2073]
[1740673873326,0.05393903,138.89,138.84,2.16e-06]
[1740673873718,0.05393903,138.89,138.86,7.2066]
[1740673873926,0.05393903,138.89,138.84,2.16e-06]
[1740673875424,0.05393903,138.89,138.88,7.206]
[1740673875630,29.81804165,138.96,138.85,1.0079]
[1740673875829,29.81804165,138.96,138.86,3.208]
[1740673876225,29.81804165,138.96,138.86,196.208]
[1740673876627,29.81804165,138.96,138.95,7.2024]
[1740673877026,0.04943102,138.97,138.86,192.5633403]
[1740673877226,0.04943102,138.97,138.94,7.24942598]
[1740673877530,0.04790771,138.97,138.94,0.04755368]
[1740673878333,7.2024,138.95,138.94,0.04755368]
[1740673878731,9.6372,138.96,138.94,0.04755368]